Cogmind - Beta 14 @@@ ROGUE MODE // 2024.09.02 @ 14:51:33 Player: CONM Result: Destroyed by H-55 Commando with Gauss Rifle Performance ------------- Evolutions (2) 1000 Regions Visited (4) 800 Robots Destroyed (35) 175 Value Destroyed (687) 687 Prototype IDs (2) 40 Alien Tech Used (0) 0 Bonus (73) 73 TOTAL SCORE: 2775 Bonus ------- High Alert Combat Kills 73 Cogmind --------- Core Integrity 0/550 Matter 45/300 Energy 100/100 System Corruption 8% Temperature Cool (0) Movement Core (250) Ox4 Location -8/Materials Parts ------- > --- POWER (1) -------- (None) > --- PROPULSION (4) --- (None) > --- UTILITY (4) ------ Medium Storage Unit Machine Analyzer > --- WEAPON (2) ------- Heavy Mace > --- INVENTORY (10) --- Compact Battery (200) Advanced Visual Processing Unit Actuator Array Hardened Medium Armor Plating Hardlight Generator Flail Flail Heavy Mace Peak State ------------ > --- POWER ------------ Deuterium Engine > --- PROPULSION ------- Improved Hover Unit Improved Hover Unit Improved Hover Unit Improved Hover Unit > --- UTILITY ---------- Medium Storage Unit Weight Redist. System Structural Scanner Signal Interpreter > --- WEAPON ----------- Flail Heavy Mace > --- INVENTORY -------- Light Nuclear Core Compact Wheel Advanced Visual Processing Unit Actuator Array Hardened Medium Armor Plating Hardlight Generator Rocket Launcher Rocket Launcher Flail Flail [Rating: 23] Favorites ----------- Power Ion Engine Engine Ion Engine Power Core Light Nuclear Core Propulsion Improved Hover Unit Treads Light Treads Wheel Wheel Hover Unit Improved Hover Unit Utility Large Storage Unit Device Structural Scanner Storage Large Storage Unit Processor Machine Analyzer Protection Light Armor Plating Weapon Flail Energy Gun Small Laser Ballistic Gun Assault Rifle Launcher Rocket Launcher Impact Weapon Flail Build | -11 -10 -9 -9 -8 ------- Run | Yrd Mat Mat Min Mat Slots Evolved 4 | . . 2 . 2 Power . | . . . . . Propulsion 2 | . . 2 . . Utility 2 | . . . . 2 Weapon . | . . . . . Parts Attached 44 | 8 8 6 . 22 Power 7 | 2 . . . 5 Engine 5 | 2 . . . 3 Core 2 | . . . . 2 Reactor . | . . . . . Propulsion 9 | 2 . 4 . 3 Treads 2 | 2 . . . . Leg . | . . . . . Wheel 3 | . . . . 3 Hover 4 | . . 4 . . Flight . | . . . . . Utility 12 | 2 3 . . 7 Device 5 | 1 1 . . 3 Storage 3 | 1 1 . . 1 Processor 3 | . 1 . . 2 Hackware . | . . . . . Protection 1 | . . . . 1 Artifact . | . . . . . Weapon 16 | 2 5 2 . 7 Energy Gun 1 | 1 . . . . Energy Cannon . | . . . . . Ballistic Gun 4 | 1 3 . . . Ballistic Cannon . | . . . . . Launcher 5 | . . 2 . 3 Special Weapon . | . . . . . Impact Weapon 6 | . 2 . . 4 Slashing Weapon . | . . . . . Piercing Weapon . | . . . . . Special Melee Weapon . | . . . . . Unidentified Prototypes . | . . . . . Corrupted Parts 1 | . . . . 1 System Corruption 8 | . . . . 8 Parts Lost 14 | . . . . 14 Power 3 | . . . . 3 Propulsion 7 | . . . . 7 Utility 3 | . . . . 3 Weapon 1 | . . . . 1 Highest Loss Streak 6 | . . . . 6 To Critical Strikes . | . . . . . Average Slot Usage (%) 87 | . 100 88 88 79 Engine 9 | . 14 11 11 4 Core 1 | . . . . 3 Treads 9 | . 28 . . . Wheel 4 | . . . . 9 Hover 15 | . . 42 44 15 Device 11 | . 10 11 11 12 Storage 11 | . 14 11 11 9 Processor 5 | . 3 . . 8 Ballistic Gun 8 | . 24 . . . Launcher 1 | . . 1 . 2 Impact Weapon 8 | . 1 11 11 12 Peak Build Rating 23 | 7 10 17 15 23 Average Rating 13 | 5 8 14 15 18 On Entrance 9 | . 7 10 15 15 Naked Turns . | . . . . . Heaviest Build 32 | 13 30 32 28 26 Greatest Support 42 | 40 40 28 28 42 Greatest Overweight (x) 5 | . . 1 . 5 Average Overweight (x) . | . . . . . Largest Inventory Capacity 15 | 8 15 15 15 15 Average Capacity 11 | 7 13 15 15 10 Most Carried 15 | 3 15 15 15 14 Average Carried 10 | 2 10 13 14 9 Final Capacity 15 | 8 15 15 15 10 Final Carried 15 | 3 15 14 15 8 Class Distribution -------------------- 95% | Mutant 4% | Scavenger-Mutant Dominant Class ---------------- Mutant | -10/Materials Mutant | -9/Materials Mutant | -9/Mines Mutant | -8/Materials Resources | -11 -10 -9 -9 -8 ----------- Run | Yrd Mat Mat Min Mat Matter Collected 646 | 248 89 51 . 258 Remotely . | . . . . . Salvage Created 780 | 14 130 168 . 468 Parts 54 | 2 5 16 . 31 Haulers Intercepted 2 | . . 1 . 1 Recyclers Shooed . | . . . . . Parts Field Recycled . | . . . . . Retrieved Matter . | . . . . . Parts Self-Destructed . | . . . . . Prevented . | . . . . . Kills | -11 -10 -9 -9 -8 ------- Run | Yrd Mat Mat Min Mat Combat Hostiles Destroyed 24 | . 3 8 . 13 Melee 4 | . . . . 4 Guns 3 | . 3 . . . AOE 17 | . . 8 . 9 Classes Destroyed 9 | 1 1 3 . 4 Worker 2 | . . . . 2 Builder 3 | . . . . 3 Tunneler 1 | 1 . . . . Hauler 2 | . . 1 . 1 Recycler 1 | . . 1 . . Watcher 2 | . . . . 2 Swarmer 14 | . . 8 . 6 Grunt 8 | . 3 . . 5 Sentry 2 | . . . . 2 Best Kill Streak 7 | 1 2 5 . 7 Combat Bots Only 6 | . 2 4 . 6 Max Kills in Single Turn 3 | 1 1 3 . 2 Gunslinging . | . . . . . Exploded 3 | . . 3 . 2 Melee 1 | . . . . 1 Uniques/NPCs Destroyed . | . . . . . Combat | -11 -10 -9 -9 -8 -------- Run | Yrd Mat Mat Min Mat Hostile Shots Fired 175 | . 24 9 1 141 Missed 51 | . 6 3 . 42 Damage Taken 1824 | . 224 63 23 1514 Core 621 | . 54 7 4 556 Absorbed by Shields . | . . . . . Core Remaining (%) 91 | 100 78 . 97 . Volleys Fired 39 | 4 15 4 . 16 Largest 2 | 2 2 1 . 1 Hottest 60 | 60 40 33 . 33 Shots Fired 58 | 8 30 4 . 16 Gun 38 | 8 30 . . . Cannon . | . . . . . Launcher 20 | . . 4 . 16 Special . | . . . . . Kinetic 34 | 4 30 . . . Thermal 4 | 4 . . . . Explosive 20 | . . 4 . 16 Electromagnetic . | . . . . . Robot Hit Streak 10 | 3 10 7 . 5 Robot Miss Streak 7 | 2 2 1 . 7 Penetration Max . | . . . . . Secondary Targets 1 | . 1 . . . Max Gunslinging Chain 1 | . 1 . . . Shots Hit Robots 61 | 5 25 8 . 23 Core Hits 34 | 1 7 6 . 20 Critical Kills 2 | . . . . 2 Critical Parts Destroyed 7 | . . 1 . 6 Critical Strikes 10 | . . 1 . 9 Smash 10 | . . 1 . 9 Melee Attacks 57 | . 2 9 3 43 Impact 57 | . 2 9 3 43 Slashing . | . . . . . Piercing . | . . . . . Sneak Attacks 7 | . . 2 . 5 Combat Hostiles . | . . . . . Follow-up Attacks . | . . . . . Damage Inflicted 3029 | 52 319 885 . 1773 Guns 371 | 52 319 . . . Cannons . | . . . . . Explosions 1372 | . . 542 . 830 Melee 1286 | . . 343 . 943 Ramming . | . . . . . Kinetic 338 | 19 319 . . . Thermal 33 | 33 . . . . Explosive 1372 | . . 542 . 830 Electromagnetic . | . . . . . Impact 1286 | . . 343 . 943 Slashing . | . . . . . Piercing . | . . . . . Highest Corruption 8 | . 2 . . 8 Average Corruption 6 | . 2 . . 8 Corruption Purged . | . . . . . Corruption Blocked . | . . . . . Effects 8 | . 1 . . 7 Message Errors 3 | . 1 . . 2 Matter Fused 2 | . . . . 2 Heat Flow Errors 1 | . . . . 1 Parts Rejected 1 | . . . . 1 Alerts 1 | . . . . 1 Overload Shots . | . . . . . Overflow Damage 760 | . . 209 . 551 Projectiles . | . . . . . Explosions 123 | . . 62 . 61 Melee 637 | . . 147 . 490 Knockbacks 2 | . . 1 . 1 Impact 2 | . . 1 . 1 Kinetic . | . . . . . Secondary . | . . . . . Self-Inflicted Damage 114 | . . 12 . 102 Shots 4 | . . 1 . 3 Rammed . | . . . . . Targets Rammed . | . . . . . Kicked . | . . . . . Crushed . | . . . . . Highest Temperature 159 | 20 2 . . 159 Average Temperature 30 | 15 1 . . 49 Received Heat Transfer 693 | . 129 . 6 558 Siege Activations . | . . . . . Robots Corrupted 4 | . . 2 . 2 Combat Hostiles . | . . . . . Parts Fried 10 | . . 1 . 9 Impact Corruptions 17 | . . 3 . 14 Robots Melted . | . . . . . Combat Hostiles . | . . . . . Parts Melted . | . . . . . Heat Transferred 75 | 75 . . . . Parts Sabotaged . | . . . . . Parts Stolen . | . . . . . Parts Stripped . | . . . . . Power Chain Reactions . | . . . . . Alert | -11 -10 -9 -9 -8 ------- Run | Yrd Mat Mat Min Mat Peak Influence 735 | 5 149 432 200 735 Initial 168 | . 3 5 168 78 Average 224 | 1 29 133 172 424 Maximum Alert Level 3 | . . 2 1 3 Low Security (%) 62 | 100 100 77 91 21 Level 1 10 | . . 12 8 19 Level 2 20 | . . 9 . 45 Level 3 5 | . . . . 12 Level 4 . | . . . . . Level 5 . | . . . . . High Security . | . . . . . Max Security . | . . . . . Squads Dispatched 6 | . 1 1 . 4 Investigation 2 | . . 1 . 1 Extermination . | . . . . . Reinforcement 4 | . 1 . . 3 Assault . | . . . . . Garrison . | . . . . . Intercept . | . . . . . Searches Triggered . | . . . . . Construction Impeded . | . . . . . Haulers Reinforced . | . . . . . Active Scanning Responses . | . . . . . Cargo Convoy Interrupts . | . . . . . Stealth | -11 -10 -9 -9 -8 --------- Run | Yrd Mat Mat Min Mat Distress Signals 5 | . 1 2 . 2 Communications Jammed . | . . . . . Distress Signals . | . . . . . Times Spotted 61 | . 6 13 2 40 Peak Tracking Total 11 | . 3 11 2 8 Tactical Retreats 10 | . 1 2 1 6 Traps | -11 -10 -9 -9 -8 ------- Run | Yrd Mat Mat Min Mat Traps Triggered 2 | . 1 1 . . Indirectly . | . . . . . Trap Hack Attempts . | . . . . . Triggered . | . . . . . Disarmed . | . . . . . Reprogrammed . | . . . . . Reused . | . . . . . Traps Extracted . | . . . . . Installed . | . . . . . Triggered . | . . . . . Machines | -11 -10 -9 -9 -8 ---------- Run | Yrd Mat Mat Min Mat Machines Disabled 2 | . . 2 . . Max in Single Turn 2 | . . 2 . . Machines Repaired . | . . . . . Machines Dismantled . | . . . . . Machines Sabotaged . | . . . . . Overloaded Fab Kills . | . . . . . Hacking | -11 -10 -9 -9 -8 --------- Run | Yrd Mat Mat Min Mat Machines Accessed 11 | . 2 2 1 6 Terminals 10 | . 2 2 . 6 Fabricators . | . . . . . Repair Stations . | . . . . . Recycling Units . | . . . . . Scanalyzers . | . . . . . Garrison Access . | . . . . . Total Hacks 30 | . 7 9 1 13 Successful 14 | . 3 6 1 4 Failed 16 | . 4 3 . 9 Catastrophic 3 | . . . . 3 Database Lockouts . | . . . . . Manual 15 | . . 5 . 10 Terminals 29 | . 7 9 . 13 Fabricators . | . . . . . Repair Stations . | . . . . . Recycling Units . | . . . . . Scanalyzers . | . . . . . Garrison Access . | . . . . . Terminal Hacks 8 | . 3 4 1 . Prototype ID Bank 1 | . 1 . . . Open Door 1 | . . . 1 . Branch Access Points 1 | . . 1 . . Recycling Unit Index 1 | . . 1 . . Scanalyzer Index 1 | . . 1 . . Registered Components 1 | . 1 . . . Zone Layout 2 | . 1 1 . . Fabricator Hacks . | . . . . . Repair Station Hacks . | . . . . . Recycling Unit Hacks . | . . . . . Scanalyzer . | . . . . . Garrison Access Hacks . | . . . . . Unauthorized Hacks 6 | . . 2 . 4 Terminals 6 | . . 2 . 4 Botnet 6 | . . 2 . 4 Fabricators . | . . . . . Repair Stations . | . . . . . Recycling Units . | . . . . . Scanalyzers . | . . . . . Garrison Access . | . . . . . Data Cores Recovered . | . . . . . Used . | . . . . . Hacking Detections 9 | . 2 2 . 5 Full Trace Events 2 | . . . . 2 Feedback Events . | . . . . . Feedback Blocked . | . . . . . Robot Schematics Acquired . | . . . . . Robots Built . | . . . . . Authchips . | . . . . . Time . | . . . . . Total Robot Build Rating . | . . . . . Part Schematics Acquired . | . . . . . Parts Built . | . . . . . Authchips . | . . . . . Time . | . . . . . Total Part Build Rating . | . . . . . Parts Repaired . | . . . . . Time . | . . . . . Parts Recycled . | . . . . . Recycled Matter . | . . . . . Retrieved Matter . | . . . . . Retrieved Components . | . . . . . Parts Scanalyzed . | . . . . . Part Schematics Acquired . | . . . . . Parts Damaged . | . . . . . Bothacking | -11 -10 -9 -9 -8 ------------ Run | Yrd Mat Mat Min Mat Used RIF Installer . | . . . . . Robots Hacked . | . . . . . Non-combat . | . . . . . Combat . | . . . . . Robot Hacks Applied . | . . . . . Relay Couplers Released . | . . . . . Fabnet Peak Effective % . | . . . . . Robots Rewired . | . . . . . Allies Hacked . | . . . . . Hacks Repelled . | . . . . . Allies | -11 -10 -9 -9 -8 -------- Run | Yrd Mat Mat Min Mat Total Allies . | . . . . . Largest Group . | . . . . . Highest-Rated Group . | . . . . . Highest-Rated Ally . | . . . . . Total Orders . | . . . . . Ally Attacks . | . . . . . Total Damage . | . . . . . Kills . | . . . . . Allies Corrupted . | . . . . . Allies Melted . | . . . . . Intel | -11 -10 -9 -9 -8 ------- Run | Yrd Mat Mat Min Mat Robot Analysis Total . | . . . . . Derelict Logs Recovered . | . . . . . Drone Launches . | . . . . . Drone Recoveries . | . . . . . Exploration | -11 -10 -9 -9 -8 ------------- Run | Yrd Mat Mat Min Mat Turns Passed 1779 | 130 545 144 176 784 Spaces Moved 1665 | 67 273 206 349 770 Core 6 | 2 . . . 4 Treads 338 | 65 273 . . . Legs . | . . . . . Wheels 296 | . . . . 296 Hover 1025 | . . 206 349 470 Flight . | . . . . . Fastest Speed 48 | 50 160 48 48 48 Average Speed 83 | 156 160 48 48 74 Slowest Speed 300 | 160 160 108 48 300 Overloaded Moves . | . . . . . Propulsion Burnouts . | . . . . . Robots Hopped . | . . . . . Cave-ins Triggered . | . . . . . Exploration Rate (%) 40 | 4 42 32 65 57 Regions Visited 4 Branch Regions 1 Pre-discovered Areas . | . . . . . Known Exits Taken 1 | . . 1 . . Unknown Exits Taken 3 | 1 1 . 1 . Scrap Searched . | . . . . . Spaces Dug 22 | . 2 3 2 15 Terrain Destroyed 148 | . 2 34 2 110 Melee 22 | . 2 3 2 15 Projectile . | . . . . . AOE 126 | . . 31 . 95 Terrain Rammed . | . . . . . Walls Destroyed . | . . . . . Machines Disabled . | . . . . . Actions | -11 -10 -9 -9 -8 --------- Run | Yrd Mat Mat Min Mat Total 1915 | 81 348 235 352 899 Wait 65 | 1 31 . . 33 Move 1661 | 66 272 205 348 770 Hop . | . . . . . Pick Up 29 | 2 15 4 1 7 Fast Attach 13 | 7 . . . 6 Attach 15 | . 1 6 . 8 Detach 5 | . . 3 . 2 Swap 16 | 1 7 . . 8 Drop 19 | . 5 4 . 10 Fire 39 | 4 15 4 . 16 Melee 53 | . 2 9 3 39 Ram . | . . . . . Kick . | . . . . . Crush . | . . . . . Escape Stasis . | . . . . . Rewire . | . . . . . Trap . | . . . . . Miscellaneous . | . . . . . Route ------- -11/Scrapyard -10/Materials (discovered 2 exits: *Mat / [Min]) -9/Materials (discovered 2 exits: *Min x2) -9/Mines (discovered 2 exits: *Mat x2) -8/Materials (discovered 2 exits: [*Fac x2]) History --------- Turn | Location | Event 9 | -11/Scrapyard | Discovered new exit (range 15) 131 | -11/Scrapyard | Entered Materials 311 | -10/Materials | Build established: Mutant 605 | -10/Materials | Discovered new exit (range 16) 650 | -10/Materials | Discovered new exit (range 13) 676 | -10/Materials | Entered another Materials area 676 | -9/Materials | Evolved 2 slots: Propulsion x2 806 | -9/Materials | Identified exit to Mines 820 | -9/Materials | Entered Mines 823 | -9/Mines | Met a Derelict who couldn't figure out how to use a Trap Extractor 838 | -9/Mines | Met a Derelict bent on vengeance 858 | -9/Mines | Discovered new exit (range 13) 888 | -9/Mines | Discovered new exit (range 6) 951 | -9/Mines | Received a Rocket Launcher from a helpful Derelict 996 | -9/Mines | Entered Materials 996 | -8/Materials | Evolved 2 slots: Utility x2 1668 | -8/Materials | Core integrity fell below 50% 1692 | -8/Materials | Discovered new exit (range 12) 1759 | -8/Materials | Discovered new exit (range 15) 1774 | -8/Materials | Core integrity fell below 20% 1780 | -8/Materials | Destroyed by H-55 Commando with Gauss Rifle Last Messages --------------- 01744_ Terminal x1 01745_ Slug penetrates Wall. 01747_ O-16 Technician uses terminal to summon reinforcements. 01747_ ALERT: Hostiles spotted, dispatching reinforcements to Terminal M006. 01747_ O-16 Technician locks terminal. 01759_ Deuterium Engine destroyed. 01759_ EXIT=FOUND 01759_ H-61 Shepherd calls for reinforcements. 01759_ ALERT: Suspicious intruders detected, dispatching Specialist reinforcements to area. 01761_ Slug penetrates Wall. 01767_ Wheel destroyed. 01767_ Knocked back. 01772_ Actuator Array destroyed. 01773_ Slug penetrates Wall. 01775_ Critical hit (Burn: +37). 01775_ Slug penetrates Wall. 01777_ Critical hit (Burn: +37). 01780_ Slug penetrates Wall. Map ----- +----------------------------------------------------+ | ?????????????????????????????????????????? | | ?????????????????????????????????????????? | | ?????????????????????????????????????????? | | ?????????????????????????????????????????? | | ?????????????????????????????????????????? | | ?????????????????????????????????????????? | | ?????????????????????????????????????????? | | ?????????????????????????????????????????? | | ?????????????????????????????????????????? | | ?????????????????????????????????????????? | | ???????????????###???????????????????????? | | ?????????????# ???????????????????????? | | ?????????????? ???????????????????????? | | ?????????"""?? ???????????????????????? | | ?????????"""?? ???????????????????????? | | ?????????"""?? ???????????????????????? | | ?????"Y"??????# ???????????????????????? | | ?????"""??????# #??????????????????????? | | ??????????????# #??????????????????????? | | ??????????????# #??????????????????????? | | ??????????????# #??????????????????????? | | ??????????????# #??????????????????????? | | ??????????##### #??????????????????????? | | ??????????# #??????????????????????? | | ??????????# < #??????????????????????? | | ??????????# @###????????????????????? | | ??????????####+#;;;;#########????????????? | | ??????????# H; "#????????????? | | ??????????# """ g ##????????????? | | ??????????# """ # % "#????????##?## | | ??????????# """ # % ##????????# | | ??????????# # #?????????#! "" | | ??????????# = # #?????????# "" | | ???##########+#### #?????????# "" | | ??# "T" # ######Y#######?????????#! | | ??# / #??????????# "" | | ??# # #??????????#] "" | | ??# # #??????????# "" | | ??#########?# #??????????# | | ????????#####+########## #??######??# "" | | ????????# # + #?##!!!!##?#! "" | | ????????# # # #?#! !#?# "" | | ????????# # # #?# #?# | | ????????#! =# # ### ####### | | ????????########"## # # ! | | ?????????# #= # # | | ?????????# ! # # + ] ! | | ?????????# # + # | | ?????????# """ # # # | | ?????????# """"" #"#### # "" | +----------------------------------------------------+ Best States ------------- Heat Dissipation 31 Energy Generation 14 Energy Capacity 275 Matter Stores 267 Matter Capacity 300 Sight Range 16 Terrain Scan Density 10 Additional Mass Support 6 Armor Coverage 150 Evasion (%) 55 Targeting Accuracy 5 Recoil Reduction 2 Item Schematics ----------------- None Robot Schematics ------------------ None Fabricated ------------ Nothing Alien Tech Used ----------------- None Achievements -------------- None Challenges ------------ None Game ------ Seed DeepBottomlessSuite Manual? 0 Play Time 00:28:42 Cumulative 67.7 hours Start 2024.09.02 @ 14:14:43 End 2024.09.02 @ 14:51:33 Sessions 1 Manual Loads 0 Difficulty Rogue Special Mode None Game No. 91 Rogue 91 Adventurer 0 Explorer 0 Win Type - Total 0 Types 0/0/0/0/0/0/0/0/0 Lore% 35 Gallery% 35 Achievement% 38 Wizard Run 0 Options --------- Layout 0 ASCII 0 Keyboard 0 Movement Arrows Keybinds 0 Fullscreen 2 Font 18/SmallcapsGlow Map View 76x50 Zoom Use 0% Tactical HUD 1 Map Filters NONE Filters NONE Steam 1 RUN: f35a572d-55f3-485c-aba7-bb84b22dcd68